bitfinex/quotes_ETHUSD_20251130
["timestamp","ask_amount","ask_price","bid_price","bid_amount"]
[1764537654847,4.33699977,3020.8,3020.7,0.001]
[1764537655077,5.55162952,3020.8,3020.7,0.001]
[1764537655375,8.80948898,3020.8,3020.7,0.001]
[1764537655538,5.01238404,3020.8,3020.7,0.001]
[1764537655870,4.32193183,3020.8,3020.7,0.001]
[1764537656170,3.43753044,3020.8,3020.7,0.001]
[1764537658444,2.76603044,3020.8,3020.7,0.001]
[1764537658644,1.79329726,3020.8,3020.7,0.001]
[1764537659052,2.29149726,3020.8,3020.7,0.001]
[1764537659472,1.79329726,3020.8,3020.7,0.001]
[1764537659982,2.29149726,3020.8,3020.7,0.001]
[1764537660448,1.69149726,3020.8,3020.7,0.001]
[1764537660655,1.19329726,3020.8,3020.7,0.001]
[1764537660960,1.69149726,3020.8,3020.7,0.001]
[1764537661565,9.85549791,3020.8,3020.7,0.001]
[1764537661748,10.3585073,3020.8,3020.7,0.001]
[1764537662675,6.89164784,3020.8,3020.7,0.001]
[1764537663085,7.49164784,3020.8,3020.7,0.001]
[1764537663299,8.67066995,3020.8,3020.7,0.001]
[1764537664286,8.26516595,3020.8,3020.7,0.001]
[1764537664589,8.47416595,3020.8,3020.7,0.001]
[1764537670372,7.29514384,3020.8,3020.7,0.001]
[1764537670798,2.76096838,3020.8,3020.7,0.001]
[1764537670999,3.68030123,3020.8,3020.7,0.001]
[1764537671681,3.68030123,3020.8,3020.7,0.4526]
[1764537671682,1.47562743,3020.8,3020.7,0.4526]
[1764537672014,1.34299726,3020.8,3020.7,0.4526]
[1764537672316,1.30787248,3020.8,3020.7,0.4526]
[1764537672516,1.30787248,3020.8,3020.7,0.946]
[1764537672719,1.30787248,3020.8,3020.7,4.25649094]
[1764537673014,0.03712478,3021.0,3020.7,2.04949217]
[1764537673317,0.03712478,3021.0,3020.9,0.4516]
[1764537673490,0.7450982,3021.0,3020.9,0.4516]
[1764537674528,0.7450982,3021.0,3020.7,0.001]
[1764537674529,9.37064051,3021.0,3020.7,0.001]
[1764537674713,0.0669,3020.8,3020.7,0.001]
[1764537674894,0.8099982,3020.8,3020.7,0.001]
[1764537678703,0.94259891,3020.8,3020.7,0.001]
[1764537679541,0.87569891,3020.8,3020.7,0.4526]
[1764537680037,0.70797342,3020.8,3020.7,0.946]
[1764537681334,0.70797342,3020.8,3020.7,1.155]
[1764537681502,0.70797342,3020.8,3020.7,4.46549094]
[1764537682648,0.70797342,3020.8,3020.7,5.24320503]
[1764537682934,0.03712478,3021.0,3020.7,5.24320503]
[1764537683142,0.002,3021.0,3020.9,0.4945]
[1764537683352,0.7107447,3021.0,3020.9,0.4945]
[1764537684826,0.7107447,3021.0,3020.9,0.968]
[1764537687268,0.7107447,3021.0,3020.7,0.21]
[1764537687269,1.1679447,3021.0,3020.7,0.21]
[1764537687436,0.002,3021.0,3020.9,0.4855]
[1764537687641,0.71029961,3021.0,3020.9,0.4855]
[1764537688955,0.71029961,3021.0,3020.9,0.959]
[1764537689357,0.71029961,3021.0,3020.9,0.4855]
[1764537689578,0.74542439,3021.0,3020.9,0.4855]
[1764537690652,0.74542439,3021.0,3020.9,0.959]
[1764537691162,0.74542439,3021.0,3020.9,0.4855]
[1764537692760,0.74542439,3021.0,3020.9,0.959]
[1764537692956,1.20262439,3021.0,3020.8,3.31037844]
[1764537693160,0.49432478,3021.0,3020.7,3.5204552]
[1764537693865,0.03712478,3021.0,3020.7,3.9939552]
[1764537694069,0.03712478,3021.0,3020.9,0.4855]
[1764537694272,0.74554283,3021.0,3020.9,0.4855]
[1764537694585,0.74554283,3021.0,3020.9,4.26927177]
[1764537694743,0.74554283,3021.0,3020.9,0.959]
[1764537694945,0.71041805,3021.0,3020.9,0.959]
[1764537697684,0.71041805,3021.0,3020.9,4.26927177]
[1764537698077,0.71041805,3021.0,3020.9,0.959]
[1764537701493,0.74554283,3021.0,3020.9,0.959]
[1764537703104,0.74554283,3021.0,3020.9,4.26927177]
[1764537703300,0.74554283,3021.0,3020.9,3.79577177]
[1764537703477,0.71041805,3021.0,3020.9,4.26927177]
[1764537703682,0.71041805,3021.0,3020.9,5.0482369]
[1764537706275,0.71041805,3021.0,3020.9,0.4855]
[1764537706484,1.16761805,3021.0,3020.8,3.31034003]
[1764537706688,0.70841805,3020.9,3020.7,3.52048324]
[1764537706903,0.71015284,3020.8,3020.7,3.99398324]
[1764537707407,0.71015284,3020.8,3020.7,4.47948324]
[1764537709522,0.71015284,3020.8,3020.7,0.4865]
[1764537709693,0.71015284,3020.8,3020.7,0.6955]
[1764537710021,0.71015284,3020.8,3020.7,4.00599094]
[1764537710207,0.71015284,3020.8,3020.7,4.47949094]
[1764537720801,0.71015284,3020.8,3020.7,4.51259584]
[1764537721125,0.71015284,3020.8,3020.7,4.03909584]
[1764537722501,0.71015284,3020.8,3020.7,4.49159584]
[1764537725233,0.71015284,3020.8,3020.7,4.03909584]
[1764537727420,0.71015284,3020.8,3020.7,0.001]
[1764537727421,1.66005284,3020.8,3020.7,0.001]
[1764537727730,4.09170898,3020.8,3020.7,0.001]
[1764537728099,4.09170898,3020.8,3020.7,3.79079094]
[1764537728100,0.71015284,3020.8,3020.7,3.79079094]
[1764537729319,0.71015284,3020.8,3020.7,0.4803]
[1764537729519,0.71015284,3020.8,3020.7,3.79079094]
[1764537731009,0.71015284,3020.8,3020.7,4.45229094]
[1764537732815,0.71015284,3020.8,3020.7,4.03289584]
[1764537733032,0.002,3021.0,3020.7,8.53043633]
[1764537733234,0.002,3021.0,3020.9,0.4793]
[1764537733513,0.71292434,3021.0,3020.9,0.4793]
[1764537733713,0.71292434,3021.0,3020.9,4.24207177]
[1764537734441,0.71292434,3021.0,3020.9,3.78957177]
[1764537735232,0.71292434,3021.0,3020.9,4.63927202]
[1764537736317,0.71292434,3021.0,3020.9,5.09177202]
[1764537738464,0.71292434,3021.0,3020.9,1.78150025]
[1764537738777,0.71292434,3021.0,3020.9,0.4793]
[1764537739067,0.71292434,3021.0,3020.9,3.78957177]
[1764537739465,0.71292434,3021.0,3020.9,4.24207177]
[1764537740046,0.71292434,3021.0,3020.9,3.78957177]
[1764537740247,0.71292434,3021.0,3020.9,4.24207177]
[1764537740447,0.71292434,3021.0,3020.9,4.27517448]
[1764537741967,0.71292434,3021.0,3020.9,3.78957177]
[1764537743856,1.17212434,3021.0,3020.8,3.31036203]
[1764537744056,0.4612,3021.0,3020.8,3.31036203]
[1764537745043,0.4612,3021.0,3020.9,0.001]
[1764537745244,1.17158901,3021.0,3020.9,0.001]
[1764537750602,0.71238901,3021.0,3020.9,0.4785]
[1764537754904,0.71238901,3021.0,3020.9,3.82187448]
[1764537758422,5.84295626,3021.0,3020.9,0.001]
[1764537758631,12.96403172,3021.0,3020.9,0.001]
[1764537760202,11.19317903,3021.0,3020.9,0.001]
[1764537764137,12.37488892,3021.0,3020.9,0.001]
[1764537766945,8.91044055,3021.0,3020.9,0.001]
[1764537771168,5.60027836,3021.0,3020.9,0.001]
[1764537771368,2.92679018,3021.0,3020.9,0.001]
[1764537771539,2.92679018,3021.0,3020.6,0.001]
[1764537771540,4.28537293,3021.0,3020.6,0.001]
[1764537771740,4.28537293,3021.0,3020.5,0.001]
[1764537771741,0.405504,3020.6,3020.5,0.001]
[1764537771939,4.01518893,3020.6,3020.5,0.001]
[1764537772163,5.2517508,3020.6,3020.5,0.001]
[1764537772477,4.56096457,3020.6,3020.5,0.001]
[1764537772954,3.94646057,3020.6,3020.5,0.001]
[1764537773156,2.17626446,3020.6,3020.5,0.001]
[1764537773347,7.66256511,3020.6,3020.5,0.001]
[1764537773545,5.85724422,3020.6,3020.5,0.001]
[1764537773749,7.50753528,3020.6,3020.5,0.001]
[1764537773947,7.4724105,3020.6,3020.5,0.001]
[1764537774173,7.4724105,3020.6,3020.3,0.001]
[1764537774174,1.13109811,3020.5,3020.3,0.001]
[1764537774349,12.10297885,3020.5,3018.7,0.003]
[1764537774548,5.23082329,3019.8,3018.7,0.003]
[1764537774740,8.04277424,3019.8,3018.7,0.003]
[1764537774945,8.51827424,3019.8,3018.7,0.003]
[1764537775142,8.3342791,3019.8,3018.7,0.003]
[1764537775344,21.73813702,3019.8,3018.7,0.003]
[1764537775671,4.48591929,3018.8,3018.7,0.003]
[1764537775873,5.4063083,3018.8,3018.7,0.003]
[1764537776073,7.17067744,3018.8,3018.7,0.003]
[1764537776273,9.75673748,3018.8,3018.7,0.003]
[1764537776592,7.46513248,3018.8,3018.7,0.003]
[1764537776743,4.91889358,3018.8,3018.7,0.003]
[1764537776942,4.62309208,3018.8,3018.7,0.003]
[1764537777179,3.3355694,3018.8,3018.7,0.003]
[1764537777368,2.41238312,3018.8,3018.7,0.003]
[1764537777981,1.43598312,3018.8,3018.7,0.003]
[1764537778295,1.43598312,3018.8,3018.1,0.22263342]
[1764537778296,0.97,3018.8,3018.1,0.003]
[1764537778442,0.21,3019.0,3018.1,0.003]
[1764537778443,3.46942518,3018.9,3018.1,0.1895]
[1764537778776,1.16609604,3018.8,3018.1,0.1895]
[1764537779275,0.44050193,3018.8,3018.1,3.98620319]
[1764537779571,0.93559411,3019.2,3018.7,0.4993]
[1764537779786,0.93559411,3019.2,3018.2,0.03313233]
[1764537779787,0.21,3019.2,3018.8,0.4993]
[1764537779965,1.63972416,3019.2,3018.8,0.4993]
[1764537780165,2.11522416,3019.2,3018.8,0.4993]
[1764537780472,1.41109411,3019.2,3018.8,0.4993]
[1764537780676,0.48805193,3019.1,3018.8,0.4993]
[1764537782081,0.03512478,3019.3,3018.8,0.4993]
[1764537782370,0.72559411,3019.1,3018.6,0.001]
[1764537782579,0.76071889,3019.1,3018.6,0.001]
[1764537782786,1.23621889,3019.1,3018.6,0.001]
[1764537783171,0.03512478,3019.1,3018.6,0.4844]
[1764537783591,0.03512478,3019.2,3018.6,3.79716977]
[1764537783799,0.03512478,3019.2,3018.7,0.03312684]
[1764537783996,0.99504632,3019.4,3019.1,0.4993]
[1764537784215,0.20854889,3019.3,3019.1,0.4993]
[1764537784514,0.03512478,3019.3,3019.1,0.4993]
[1764537784695,0.03512478,3019.3,3019.2,0.4993]
[1764537785109,0.03512478,3019.4,3019.2,0.4993]
[1764537785324,0.03512478,3019.4,3019.2,0.4834]
[1764537785488,0.70502478,3019.6,3019.3,0.4993]
[1764537785694,0.21536316,3019.6,3019.3,0.4993]
[1764537786021,0.21536316,3019.6,3019.1,0.1865]
[1764537786022,0.71466316,3019.6,3019.1,0.1865]
[1764537786322,0.21536316,3019.6,3019.1,0.6699]
[1764537786493,0.21536316,3019.6,3019.1,3.98209139]
[1764537786694,0.21536316,3019.6,3019.2,0.4834]
[1764537787401,0.21536316,3019.6,3019.2,3.795515]
[1764537788033,0.21536316,3019.6,3019.3,0.4834]
[1764537788634,0.03512478,3019.6,3019.3,0.4834]
[1764537788837,0.03512478,3019.7,3019.3,0.4834]
[1764537789908,0.03512478,3019.8,3019.3,3.7954254]
[1764537790322,0.03512478,3019.8,3019.3,0.4834]
[1764537791116,0.51062478,3019.8,3019.3,0.4834]
[1764537791304,1.21523783,3019.8,3019.2,3.31213469]
[1764537791522,1.79546354,3019.8,3019.2,3.31213469]
[1764537791844,1.31996354,3019.8,3019.3,0.4834]
[1764537792212,0.73973783,3019.8,3019.3,0.4834]
[1764537792410,0.03512478,3019.8,3019.3,0.4834]
[1764537792714,0.73973783,3019.9,3019.3,0.4834]
[1764537792905,0.03512478,3019.9,3019.3,0.4834]
[1764537793100,0.73973783,3019.9,3019.3,0.4834]
[1764537793334,0.03512478,3019.9,3019.3,0.4834]
[1764537793531,0.73973783,3019.9,3019.3,3.79539794]
[1764537793729,0.03512478,3019.9,3019.3,3.79539794]
[1764537793928,0.73973783,3019.9,3019.3,3.79539794]
[1764537794129,0.03512478,3019.9,3019.3,3.79539794]
[1764537794326,0.73973783,3019.9,3019.3,3.79539794]
[1764537794532,0.03512478,3019.9,3019.3,3.79539794]
[1764537794730,0.74109348,3019.9,3019.3,0.4834]
[1764537794922,0.03512478,3019.9,3019.3,0.4834]
[1764537795123,0.7059687,3019.8,3019.3,0.4834]
[1764537795318,0.03512478,3019.7,3019.3,4.19691601]
[1764537795523,0.03512478,3019.7,3019.6,0.4993]
[1764537795723,0.74109348,3019.9,3019.6,0.4993]
[1764537795923,0.7059687,3019.8,3019.6,0.4993]
[1764537796118,0.52962478,3019.7,3019.4,0.4834]
[1764537796349,1.23559348,3019.7,3019.2,0.4834]
[1764537796537,1.23559348,3019.7,3019.2,0.51652135]
[1764537797250,0.52962478,3019.7,3019.2,0.51652135]
[1764537797627,0.52962478,3019.7,3019.2,3.82857277]
[1764537797814,0.52962478,3019.7,3019.3,0.4834]
[1764537798142,0.70701031,3019.6,3019.3,0.4834]
[1764537798946,0.70701031,3019.6,3019.5,0.4993]
[1764537799335,0.70513304,3019.6,3019.5,0.4993]
[1764537801313,5.14455822,3019.6,3018.8,3.31255762]
[1764537801518,0.0706,3019.4,3018.8,4.00595762]
[1764537801716,0.0706,3019.4,3018.9,0.4834]
[1764537802147,0.5461,3019.4,3018.9,0.4834]
[1764537804426,0.5461,3019.4,3019.0,3.31235508]
[1764537805110,0.5461,3019.4,3019.0,3.78895508]
[1764537805316,0.0706,3019.4,3019.1,0.03312245]
[1764537806065,0.03512478,3019.5,3019.3,0.4597]
[1764537806242,0.92029507,3019.7,3019.4,0.4597]
[1764537806655,1.38619507,3019.7,3019.1,3.53342041]
[1764537806859,1.38619507,3019.7,3019.1,3.50029796]
[1764537807144,2.33907683,3019.7,3019.1,3.50029796]
[1764537808118,0.88517029,3019.6,3019.1,3.50029796]
[1764537808318,0.03512478,3019.5,3019.1,3.50029796]
[1764537808518,0.03512478,3019.5,3019.1,3.97689796]
[1764537812560,0.7099565,3019.2,3019.1,3.87163796]
[1764537813849,3.46942518,3019.8,3019.1,3.87163796]
[1764537813850,0.37504642,3020.8,3019.6,0.0863]
[1764537814050,0.002,3020.3,3020.2,3.46942518]
[1764537814368,0.002,3020.3,3019.7,0.72559411]
[1764537814548,0.002,3020.3,3019.6,0.405504]
[1764537814714,0.002,3020.3,3019.7,0.21]
[1764537815951,0.002,3020.0,3019.9,0.72559411]
[1764537816246,0.002,3020.0,3019.9,1.48144982]
[1764537818242,0.002,3020.0,3019.9,4.79281774]
[1764537826320,0.9238,3020.0,3019.3,6.62405192]
[1764537826520,0.6494,3019.9,3019.4,0.21]
[1764537826742,1.1153,3019.9,3019.4,0.21]
[1764537826941,0.6494,3019.9,3019.4,0.21]
[1764537827344,1.1153,3019.9,3019.4,0.89340519]
[1764537828123,1.1153,3019.9,3019.5,6.62361318]
[1764537829058,1.1153,3019.9,3019.5,3.31180659]
[1764537830179,1.1153,3019.9,3019.5,6.62361318]
[1764537830783,0.4559,3019.6,3019.4,3.52187528]
[1764537830923,0.4659,3019.8,3018.9,3.31339598]
[1764537830924,3.92532518,3019.5,3018.9,3.31339598]
[1764537831123,3.92532518,3019.5,3019.0,0.21]
[1764537831124,0.4559,3019.3,3019.0,0.21]
[1764537831523,0.4659,3019.2,3019.0,0.21]
[1764537832220,0.4659,3019.2,3019.1,3.31224537]
[1764537832620,0.9218,3019.2,3019.1,3.31224537]
[1764537833053,0.4559,3019.2,3019.1,3.31224537]
[1764537838077,0.4559,3019.2,3019.0,0.24405499]
[1764537838284,0.9371,3019.2,3019.0,0.24405499]
[1764537838576,0.9371,3019.2,3019.0,3.55638757]
[1764537840189,0.9362,3019.1,3019.0,0.001]
[1764537841192,0.455,3018.6,3018.1,0.003]
[1764537841491,0.455,3018.2,3018.1,0.003]
[1764537841677,0.9362,3018.2,3018.1,0.003]
[1764537844785,0.4812,3018.7,3018.1,0.0072]
[1764537845111,0.4812,3018.6,3018.1,0.0072]
[1764537845314,0.72559411,3018.9,3018.1,0.0072]
[1764537845525,0.4812,3019.1,3018.2,0.03313232]
[1764537845823,0.4812,3019.0,3018.2,0.03313232]
[1764537846027,0.4812,3019.4,3018.2,4.16861193]
[1764537846319,0.99518496,3019.6,3018.2,4.16861193]
[1764537846320,0.4812,3019.2,3018.3,0.0042]
[1764537846521,0.4812,3019.2,3018.4,0.24313013]
[1764537846715,0.4812,3019.2,3018.4,0.24733013]
[1764537847012,0.4812,3019.4,3018.5,10.0983585]
[1764537847213,0.4812,3019.4,3018.6,1.03414886]
[1764537847427,0.4812,3019.4,3018.6,1.0608969]
[1764537847582,0.4812,3019.4,3018.6,1.03414886]
[1764537848106,0.4812,3019.4,3018.6,1.03834886]
[1764537848797,0.4812,3019.4,3018.6,1.03414886]
[1764537849113,0.4812,3019.4,3018.7,4.07864065]
[1764537849692,0.4812,3019.4,3018.7,3.31264501]
[1764537850226,0.4812,3019.4,3018.8,0.21]
[1764537851118,0.4812,3019.4,3018.8,3.52251419]
[1764537852723,0.4812,3019.4,3018.8,6.83508872]
[1764537853112,0.4832,3019.4,3018.8,6.83508872]
[1764537853309,0.4832,3019.4,3018.9,0.68350887]
[1764537853310,0.002,3019.4,3018.9,0.68350887]
[1764537853738,0.002,3019.4,3018.9,0.68770887]
[1764537854349,0.002,3019.4,3019.3,0.0042]
[1764537854554,0.002,3019.4,3019.3,0.21]
[1764537854837,0.457,3019.4,3019.3,0.21]
[1764537855048,0.9382,3019.4,3019.3,0.21]
[1764537855900,0.9382,3019.4,3018.5,0.001]
[1764537856233,0.455,3019.2,3018.6,0.21]
[1764537856423,0.455,3019.2,3018.7,0.03303824]
[1764537856726,0.4812,3019.1,3018.7,0.03303824]
[1764537857633,0.4812,3019.1,3018.7,3.34562061]
[1764537859926,0.002,3019.4,3018.7,6.66250487]
[1764537860133,0.4832,3019.4,3018.7,7.31261712]
[1764537861157,0.4832,3019.4,3018.7,3.99993286]
[1764537861861,0.4832,3019.4,3018.7,7.31261712]
[1764537862252,0.4832,3019.4,3018.7,3.99993286]
[1764537862469,0.4832,3019.4,3018.7,3.31258237]
[1764537862760,0.4832,3019.4,3018.8,0.21]
[1764537863725,0.4832,3019.4,3018.9,0.01848422]
[1764537864482,0.002,3019.4,3018.9,4.05653586]
[1764537864680,0.002,3019.8,3019.4,1.13109811]
[1764537864828,0.002,3019.8,3019.7,6.31145809]
[1764537865245,0.002,3019.8,3019.7,6.31565809]
[1764537866370,0.002,3019.8,3019.7,9.62724533]
[1764537866550,0.002,3019.8,3019.7,11.03707562]
[1764537868705,0.002,3019.8,3019.7,11.44257962]
[1764537869178,0.002,3019.8,3019.7,29.53219711]
[1764537870089,0.002,3020.1,3019.9,12.930294]
[1764537870387,0.002,3020.3,3020.2,18.81840009]
[1764537870562,0.002,3020.3,3020.2,20.7258601]
[1764537870766,0.002,3020.3,3020.2,24.0410991]
[1764537871082,0.002,3020.3,3020.2,21.9501951]
[1764537872278,0.002,3020.3,3020.2,25.2540061]
[1764537872478,0.002,3020.3,3020.2,8.63909912]
[1764537872779,0.002,3020.3,3020.2,8.85329912]
[1764537873287,0.002,3020.3,3020.2,19.46686612]
[1764537874075,0.002,3020.3,3020.2,21.97747212]
[1764537874875,0.002,3020.3,3020.2,15.23210112]
[1764537875097,0.002,3021.4,3020.5,8.851117]
[1764537875300,0.002,3021.4,3020.5,6.07875108]
[1764537875498,0.4889,3021.3,3020.5,6.07875108]
[1764537875678,0.002,3021.3,3020.5,5.12376711]
[1764537875879,0.4869,3021.2,3020.5,5.12376711]
[1764537876206,0.4869,3021.2,3020.5,7.62281311]
[1764537876907,0.4869,3021.2,3020.5,10.41602325]
[1764537877107,0.4869,3021.2,3020.5,10.93352325]
[1764537877807,0.4869,3021.2,3020.5,10.93772325]
[1764537878110,0.4869,3021.2,3020.5,13.41371425]
[1764537878406,0.4869,3021.2,3020.5,12.79671425]
[1764537879181,0.4869,3021.2,3020.5,12.82451425]
[1764537879613,0.4869,3021.2,3020.5,11.67716425]
[1764537879782,0.4869,3021.2,3020.5,11.88716425]
[1764537880186,0.4869,3021.2,3020.5,10.64263725]
[1764537880393,0.4869,3021.2,3020.5,9.67154725]
[1764537880911,0.4869,3021.1,3020.5,9.67154725]
[1764537881113,0.4869,3021.1,3020.5,9.96951725]
[1764537881321,0.4869,3021.1,3020.5,9.75951725]
[1764537881487,0.9753,3020.6,3020.5,3.31071014]
[1764537881692,0.4884,3020.6,3020.5,3.52071014]
[1764537882194,0.9753,3020.6,3020.5,3.52071014]
[1764537883817,0.002,3020.6,3020.5,3.52071014]
[1764537884117,0.002,3020.6,3020.5,4.90173503]
[1764537886924,0.002,3020.6,3020.5,9.53301903]
[1764537888420,0.002,3020.6,3020.5,9.52881903]
[1764537888627,0.4884,3020.6,3020.5,3.8493508]
[1764537889140,0.002,3020.6,3020.5,3.52071014]
[1764537889443,0.002,3020.6,3020.5,3.8493508]
[1764537890044,0.002,3020.6,3020.5,3.8824579]
[1764537890338,0.002,3020.6,3020.5,8.5111319]
[1764537890538,0.002,3020.6,3020.5,8.4780248]
[1764537891842,0.002,3020.6,3020.5,8.4738248]
[1764537894840,0.002,3020.6,3020.5,8.4780248]
[1764537895150,0.002,3020.6,3020.5,8.4738248]
[1764537897781,0.9642,3020.6,3020.5,3.8493508]
[1764537897947,0.9642,3020.6,3020.5,3.55381724]
[1764537899249,0.9642,3020.6,3020.5,3.55281724]
[1764537901571,0.4968,3020.6,3020.5,4.91678143]
[1764537901764,0.4968,3020.6,3020.5,5.24542209]
[1764537902683,0.9642,3020.6,3020.5,5.24542209]
[1764537904771,0.9642,3020.6,3020.5,4.91678143]
[1764537904971,0.9642,3020.6,3020.5,3.55281724]
[1764537906718,0.9642,3020.6,3020.5,7.34564324]
[1764537907001,0.9642,3020.6,3020.5,7.31253614]
[1764537908470,0.9642,3020.6,3020.5,3.51971014]
[1764537908689,0.9642,3020.6,3020.5,3.55281724]
[1764537909172,0.002,3020.6,3020.5,8.04988478]
[1764537909371,0.002,3020.6,3020.5,8.34541834]
[1764537910600,0.002,3020.6,3020.5,8.13641834]
[1764537910778,0.002,3020.6,3020.5,8.34541834]
[1764537916015,0.4968,3020.6,3020.5,8.34541834]
[1764537921442,0.002,3020.6,3020.5,8.34541834]
[1764537921644,0.002,3020.6,3020.5,9.07521245]
[1764537922332,0.002,3020.6,3020.5,32.16653045]
[1764537923027,0.002,3020.6,3020.5,25.41418745]
[1764537923229,0.002,3020.6,3020.5,23.49805645]
[1764537923442,0.002,3020.6,3020.5,23.49474445]
[1764537923737,0.002,3020.6,3020.5,21.49557445]
[1764537924419,0.002,3020.6,3020.5,21.49137445]
[1764537924848,0.002,3020.6,3020.5,21.49557445]
[1764537925438,0.002,3020.6,3020.5,21.36798745]
[1764537925751,0.002,3020.6,3020.5,21.36378745]
[1764537926456,0.002,3020.6,3020.5,22.10625045]
[1764537926971,0.002,3020.6,3020.5,21.84117345]
[1764537927469,0.002,3020.6,3020.5,21.23017345]
[1764537927683,0.002,3020.6,3020.5,21.84117345]
[1764537928544,0.002,3020.6,3020.5,9.48071645]
[1764537928745,0.002,3020.6,3020.5,22.11051845]
[1764537928968,0.002,3020.6,3020.5,9.48491645]
[1764537929283,0.002,3020.6,3020.5,22.61061745]
[1764537929779,0.002,3020.6,3020.5,22.94178545]
[1764537930579,0.002,3020.6,3020.5,22.93758545]
[1764537930885,0.002,3020.6,3020.5,21.58502445]
[1764537931772,0.002,3020.6,3020.5,22.03043645]
[1764537931974,0.002,3020.6,3020.5,21.41943645]
[1764537932847,0.002,3020.6,3020.5,21.67188345]
[1764537933879,0.002,3020.6,3020.5,21.67798345]
[1764537934406,0.9985,3020.6,3020.5,4.55259234]
[1764537935407,0.9985,3020.6,3020.5,4.58569944]
[1764537936105,0.9985,3020.6,3020.5,4.55259234]
[1764537938597,0.9985,3020.6,3020.5,8.01677768]
[1764537940671,0.9985,3020.6,3020.5,9.07521245]
[1764537940672,0.002,3020.6,3020.5,9.07521245]
[1764537940876,0.002,3020.6,3020.5,5.61102711]
[1764537941112,0.002,3020.6,3020.5,5.60682711]
[1764537941317,0.002,3020.6,3020.5,5.63993421]
[1764537941999,0.5015,3020.6,3020.5,5.63993421]
[1764537942412,0.9985,3020.6,3020.5,5.63993421]
[1764537949138,0.9985,3020.6,3020.5,3.34381724]
[1764537949357,0.9985,3020.6,3020.3,0.001]
[1764537949505,0.4995,3020.4,3020.3,3.52092911]
[1764537950037,0.9965,3020.4,3020.3,3.52092911]
[1764537952558,0.4995,3020.4,3020.3,6.98511445]
[1764537952708,0.002,3020.6,3020.3,6.98511445]
[1764537952709,0.002,3020.6,3020.3,11.3618344]
[1764537953033,0.465,3020.6,3020.5,3.792826]
[1764537953234,0.465,3020.6,3020.5,7.10353614]
[1764537953539,0.9373,3020.6,3020.5,7.10353614]
[1764537953733,0.4743,3020.6,3020.5,7.10353614]
[1764537954054,0.002,3020.6,3020.5,7.10353614]
[1764537954347,0.002,3020.6,3020.5,8.4970756]
[1764537954907,0.002,3020.6,3020.5,5.03289026]
[1764537955139,0.002,3020.6,3020.5,5.06599736]
[1764537958045,0.4743,3020.6,3020.5,5.06599736]
[1764537958833,0.002,3020.6,3020.5,4.7373567]
[1764537959149,0.002,3020.6,3020.5,5.06599736]
[1764537959331,0.9373,3020.6,3020.5,5.06599736]
[1764537962753,0.002,3020.6,3020.5,5.06599736]
[1764537962928,0.4743,3020.6,3020.5,5.06599736]
[1764537965470,0.002,3020.6,3020.5,5.07019736]
[1764537965966,0.002,3020.6,3020.5,5.06599736]
[1764537966169,0.002,3020.6,3020.5,5.87265481]
[1764537966376,0.002,3020.6,3020.5,21.31508347]
[1764537966575,0.002,3020.6,3020.5,21.28197637]
[1764537967348,0.002,3020.6,3020.5,26.88761237]
[1764537967842,0.002,3020.6,3020.5,26.24962837]
[1764537969350,0.002,3020.6,3020.5,25.37482637]
[1764537969558,0.002,3020.6,3020.5,25.37902637]
[1764537970392,0.002,3020.6,3020.5,30.58559437]
[1764537970549,0.002,3020.6,3020.5,29.86386337]
[1764537970748,0.002,3020.6,3020.5,27.91031137]
[1764537971472,0.002,3020.6,3020.5,6.81818837]
[1764537971781,0.002,3020.6,3020.5,32.00431137]
[1764537972678,0.002,3020.6,3020.5,31.83281037]
[1764537972849,0.002,3020.6,3020.5,23.52842137]
[1764537973050,0.002,3020.6,3020.5,19.96614798]
[1764537973264,0.002,3020.6,3020.5,17.92025798]
[1764537973475,0.002,3020.6,3020.5,21.77025798]
[1764537973779,0.002,3020.6,3020.5,22.08909098]
[1764537974575,0.002,3020.6,3020.5,11.33132398]
[1764537974784,0.002,3020.6,3020.5,24.76639098]
[1764537975777,0.002,3020.6,3020.5,27.41419837]
[1764537976079,0.002,3020.6,3020.5,10.66818837]
[1764537976384,0.002,3020.6,3020.5,27.41419837]
[1764537977070,0.002,3020.6,3020.5,28.09071994]
[1764537977671,0.002,3020.6,3020.5,28.12383994]
[1764537978880,0.002,3020.6,3020.5,41.34470994]
[1764537979094,0.002,3021.3,3021.2,18.17814183]
[1764537979250,0.002,3021.3,3021.2,13.54559868]
[1764537980053,0.002,3021.3,3021.2,13.95110268]
[1764537980281,0.002,3021.3,3021.2,37.83925468]
[1764537980488,0.002,3021.3,3021.2,35.95682468]
[1764537980653,0.002,3021.3,3021.2,38.24139681]
[1764537980856,0.002,3021.3,3021.2,37.97929981]
[1764537982082,0.002,3021.8,3021.5,1.45973877]
[1764537982397,0.002,3021.8,3021.6,23.78696266]
[1764537983075,0.002,3021.8,3021.6,24.19246666]
[1764537983286,0.002,3021.8,3021.6,31.45828412]
[1764537983459,0.002,3022.2,3022.1,0.32864066]
[1764537983657,0.002,3022.2,3022.1,4.73134462]
[1764537983864,0.002,3022.2,3022.1,4.72714462]
[1764537985604,0.002,3022.2,3022.1,8.44580596]
[1764537985769,0.002,3022.2,3022.1,10.11119364]
[1764537986588,0.002,3022.2,3022.1,29.20966764]
[1764537987573,0.002,3022.2,3022.1,31.99155664]
[1764537987773,0.4545,3022.2,3022.1,24.22356913]
[1764537987979,0.4545,3022.2,3022.1,4.24355145]
[1764537987980,0.9137,3022.2,3022.1,4.24355145]
[1764537988390,0.9137,3022.2,3022.1,4.57219211]
[1764537988877,0.9137,3022.2,3022.1,4.24355145]
[1764537989188,0.9137,3022.2,3022.1,4.57219211]
[1764537990708,0.9137,3022.2,3022.1,4.24355145]
[1764537990908,0.9137,3022.2,3022.1,4.57219211]
[1764537992611,0.002,3022.2,3022.1,6.11972246]
[1764537992799,0.002,3022.2,3022.1,20.04975946]